bitfinex-derivatives/quotes_BTCF0:USTF0_20240923
["timestamp","ask_amount","ask_price","bid_price","bid_amount"]
[1727088846452,0.004,63558.0,63557.0,0.48926758]
[1727088846761,0.004,63558.0,63557.0,1.56126758]
[1727088846956,0.37955014,63564.0,63563.0,0.158666]
[1727088847258,0.37955014,63564.0,63563.0,0.27354328]
[1727088848364,0.38355014,63564.0,63563.0,0.36882824]
[1727088848954,0.38755014,63564.0,63563.0,0.36882824]
[1727088849157,0.39055014,63564.0,63563.0,0.36882824]
[1727088850463,0.38255014,63564.0,63563.0,0.36782824]
[1727088851662,0.02175014,63564.0,63563.0,0.27354328]
[1727088851854,0.02175014,63564.0,63563.0,0.27305465]
[1727088852055,0.02175014,63564.0,63563.0,0.28734353]
[1727088853066,0.02175014,63564.0,63563.0,0.19305465]
[1727088853260,0.02175014,63564.0,63563.0,0.28734353]
[1727088854769,0.02175014,63564.0,63563.0,0.19305465]
[1727088855065,0.02175014,63564.0,63563.0,0.28734353]
[1727088857876,0.02175014,63564.0,63563.0,0.19305465]
[1727088858262,0.02175014,63564.0,63563.0,0.28734353]
[1727088858460,0.02175014,63564.0,63563.0,0.078666]
[1727088866576,0.02175014,63564.0,63563.0,0.28744801]
[1727088869580,0.02175014,63564.0,63563.0,0.3675457]
[1727088869769,0.02175014,63564.0,63563.0,0.27315913]
[1727088870868,0.02175014,63564.0,63563.0,0.27318481]
[1727088871064,0.02175014,63564.0,63563.0,0.48830328]
[1727088871375,0.439442,63583.0,63570.0,0.157314]
[1727088871579,0.00236022,63577.0,63576.0,0.078649]
[1727088871879,0.00236022,63577.0,63576.0,0.40926014]
[1727088872273,0.00236022,63577.0,63576.0,0.158649]
[1727088872471,0.02117397,63577.0,63576.0,0.158649]
[1727088872679,0.00636022,63577.0,63576.0,0.079649]
[1727088873280,0.00636022,63577.0,63576.0,0.28832071]
[1727088874181,0.01036022,63577.0,63576.0,0.36932071]
[1727088874772,0.01036022,63577.0,63576.0,0.25501853]
[1727088876579,0.01036022,63577.0,63576.0,0.160649]
[1727088877985,0.01036022,63577.0,63576.0,0.711178]
[1727088878376,0.0037,63584.0,63576.0,1.15388]
[1727088878573,0.0037,63587.0,63586.0,0.078637]
[1727088878776,0.0497,63591.0,63589.0,0.078633]
[1727088879189,0.03037904,63590.0,63589.0,0.078633]
[1727088879580,0.0497,63591.0,63589.0,0.078633]
[1727088879780,0.0497,63591.0,63590.0,0.078632]
[1727088880089,0.1307,63591.0,63590.0,0.078632]
[1727088881087,0.14998238,63591.0,63590.0,0.078632]
[1727088881478,0.14998238,63591.0,63590.0,0.079632]
[1727088881980,0.14898238,63591.0,63590.0,0.080632]
[1727088883080,0.06898238,63591.0,63590.0,0.080632]
[1727088885583,0.14761338,63591.0,63590.0,0.080632]
[1727088888996,0.17799155,63591.0,63590.0,0.080632]
[1727088889896,0.09936055,63591.0,63590.0,0.160632]
[1727088890288,0.04966055,63591.0,63590.0,0.160632]
[1727088891487,0.04965834,63591.0,63590.0,0.160632]
[1727088891705,0.03037596,63591.0,63590.0,0.160632]
[1727088891999,0.3608,63594.0,63593.0,0.078628]
[1727088892195,0.3608,63594.0,63593.0,0.158628]
[1727088892196,0.39117593,63594.0,63593.0,0.158628]
[1727088892791,0.41041799,63594.0,63593.0,0.158628]
[1727088893298,0.41041799,63594.0,63593.0,0.159628]
[1727088894388,0.41041799,63594.0,63593.0,0.160628]
[1727088896385,0.41041706,63594.0,63593.0,0.160628]
[1727088896809,0.38004206,63594.0,63593.0,0.160628]
[1727088897499,0.38004206,63594.0,63593.0,0.20765668]
[1727088898503,0.38004206,63594.0,63593.0,0.160628]
[1727088898704,0.38004206,63594.0,63593.0,0.002]
[1727088898705,0.53866906,63594.0,63593.0,0.002]
[1727088899303,0.53866906,63594.0,63593.0,0.04902587]
[1727088899606,0.53866906,63594.0,63593.0,0.002]
[1727088900601,0.45866906,63594.0,63593.0,0.002]
[1727088901501,0.45866906,63594.0,63593.0,0.06492781]
[1727088901687,0.53866906,63594.0,63593.0,0.06492781]
[1727088901892,0.53866906,63594.0,63593.0,0.002]
[1727088902690,0.61729606,63594.0,63593.0,0.002]
[1727088902892,0.078635,63588.0,63587.0,0.06292781]
[1727088903197,0.07864,63584.0,63583.0,0.06662781]
[1727088903401,0.08,63584.0,63582.0,0.06292781]
[1727088903800,0.078645,63580.0,63579.0,0.07865977]
[1727088904102,0.078645,63580.0,63579.0,0.19192519]
[1727088904403,0.078645,63580.0,63579.0,0.07865977]
[1727088905198,0.078646,63579.0,63578.0,0.07865977]
[1727088905395,0.078646,63579.0,63578.0,0.19189341]
[1727088906203,0.078646,63579.0,63578.0,0.07865977]
[1727088906800,0.078646,63579.0,63578.0,0.19187978]
[1727088907200,0.080646,63579.0,63578.0,0.07965977]
[1727088907703,0.080646,63579.0,63578.0,0.08065977]
[1727088908506,0.04129605,63579.0,63578.0,0.08065977]
[1727088908706,0.04129605,63579.0,63578.0,0.15930677]
[1727088908903,0.06050767,63579.0,63578.0,0.15930677]
[1727088909307,0.06050767,63579.0,63578.0,0.080647]
[1727088912806,0.06050767,63579.0,63578.0,0.002]
[1727088912998,0.89314767,63579.0,63578.0,0.002]
[1727088913395,0.97179367,63579.0,63578.0,0.002]
[1727088913901,0.49995367,63579.0,63578.0,0.002]
[1727088924511,0.42130767,63579.0,63578.0,0.002]
[1727088925223,0.49995367,63579.0,63578.0,0.002]
[1727088925711,0.42130767,63579.0,63578.0,0.002]
[1727088925910,0.49995367,63579.0,63578.0,0.002]
[1727088926707,0.42130767,63579.0,63578.0,0.002]
[1727088928505,0.45169192,63579.0,63578.0,0.002]
[1727088928711,0.53033792,63579.0,63578.0,0.002]
[1727088930008,0.16953792,63579.0,63578.0,0.002]
[1727088930208,0.53033792,63579.0,63578.0,0.002]
[1727088932313,0.53033841,63579.0,63578.0,0.002]
[1727088933914,0.49995367,63579.0,63578.0,0.002]
[1727088934912,0.13915367,63579.0,63578.0,0.002]
[1727088935509,0.49995367,63579.0,63578.0,0.002]
[1727088936815,0.42130767,63579.0,63578.0,0.002]
[1727088937021,0.49995367,63579.0,63578.0,0.002]
[1727088939226,0.57995367,63579.0,63578.0,0.002]
[1727088942617,0.21915367,63579.0,63578.0,0.002]
[1727088942820,0.57995367,63579.0,63578.0,0.002]
[1727088943215,0.49995367,63579.0,63578.0,0.002]
[1727088945326,0.13915367,63579.0,63578.0,0.002]
[1727088945822,0.49995367,63579.0,63578.0,0.002]
[1727088947220,0.13915367,63579.0,63578.0,0.002]
[1727088947418,0.57995367,63579.0,63578.0,0.002]
[1727088947618,0.157306,63573.0,63572.0,0.0037]
[1727088947821,0.078656,63571.0,63570.0,0.0485]
[1727088948922,0.078656,63571.0,63570.0,0.127157]
[1727088949115,0.1958503,63571.0,63570.0,0.174657]
[1727088949825,0.1968503,63571.0,63570.0,0.174657]
[1727088950425,0.1181943,63571.0,63564.0,0.0037]
[1727088950617,0.08,63566.0,63561.0,0.0037]
[1727088950816,0.1958583,63565.0,63564.0,0.078664]
[1727088951626,0.1958583,63565.0,63564.0,0.083664]
[1727088953327,0.35290973,63565.0,63564.0,0.083664]
[1727088954218,0.35290973,63565.0,63557.0,0.0037]
[1727088954219,0.078668,63561.0,63537.0,0.439497]
[1727088954443,0.078666,63563.0,63545.0,0.0453]
[1727088954444,0.078687,63546.0,63545.0,0.0453]
[1727088954622,0.5883961,63546.0,63545.0,0.0453]
[1727088954833,0.60629866,63546.0,63545.0,0.0453]
[1727088955225,0.74734116,63546.0,63545.0,0.0453]
[1727088955533,0.66734116,63546.0,63545.0,0.0453]
[1727088955722,0.66737569,63546.0,63545.0,0.0453]
[1727088956233,0.439487,63546.0,63545.0,0.0463]
[1727088956438,0.078687,63546.0,63545.0,0.1263]
[1727088956919,0.3608,63552.0,63545.0,0.1263]
[1727088957126,0.078683,63549.0,63545.0,0.126988]
[1727088957320,0.078684,63548.0,63545.0,0.126988]
[1727088957534,0.078685,63547.0,63545.0,0.126988]
[1727088957828,0.03931542,63547.0,63545.0,0.126988]
[1727088958033,0.37945049,63552.0,63545.0,0.126988]
[1727088958034,0.078687,63546.0,63545.0,0.126988]
[1727088958331,0.078687,63546.0,63545.0,0.256988]
[1727088958630,0.078687,63546.0,63545.0,0.1763]
[1727088958836,0.078687,63546.0,63545.0,0.1783]
[1727088960430,0.37945049,63552.0,63545.0,0.256988]
[1727088960625,0.37945049,63552.0,63550.0,0.13]
[1727088960822,0.45812949,63552.0,63551.0,0.049]
[1727088961633,0.09732949,63552.0,63551.0,0.049]
[1727088961937,0.09932949,63552.0,63551.0,0.049]
[1727088962731,0.10332949,63552.0,63551.0,0.049]
[1727088969342,0.46412949,63552.0,63551.0,0.049]
[1727088971541,0.38545049,63552.0,63551.0,1.19972]
[1727088971938,0.38545049,63552.0,63551.0,1.26260305]
[1727088972441,0.38545049,63552.0,63551.0,1.19972]
[1727088972935,0.02465049,63552.0,63551.0,1.19972]
[1727088973535,0.02465049,63552.0,63551.0,0.12768]
[1727088973932,0.02465049,63552.0,63551.0,1.19972]
[1727088974131,0.02465049,63552.0,63551.0,0.12768]
[1727088974333,0.02465049,63552.0,63551.0,1.19972]
[1727088974536,0.47408081,63552.0,63549.0,0.07865977]
[1727088974839,0.078687,63546.0,63545.0,0.14139525]
[1727088975035,0.078687,63546.0,63545.0,0.078688]
[1727088975336,0.078687,63546.0,63545.0,0.14139525]
[1727088975541,0.078687,63546.0,63545.0,0.078688]
[1727088975933,0.078687,63546.0,63545.0,0.14139525]
[1727088976830,0.078687,63546.0,63545.0,0.14339525]
[1727088977238,0.078687,63546.0,63545.0,0.080688]
[1727088977742,0.078687,63546.0,63545.0,0.081688]
[1727088983547,0.09731092,63546.0,63545.0,0.081688]
[1727088986248,0.09731092,63546.0,63545.0,0.19535941]
[1727088987044,0.09731092,63546.0,63545.0,0.19537067]
[1727088987238,0.01862392,63546.0,63545.0,0.19537067]
[1727088987437,0.078685,63548.0,63547.0,0.078685]
[1727088987644,0.078682,63550.0,63549.0,0.078683]
[1727088987840,0.078682,63550.0,63549.0,0.27097424]
[1727088988036,0.078682,63550.0,63549.0,0.19236567]
[1727088993360,0.38010396,63552.0,63551.0,0.07868]
[1727088993550,0.38010396,63552.0,63551.0,0.19236267]
[1727088994251,0.45878296,63552.0,63551.0,0.19236267]
[1727088996350,0.45878296,63552.0,63551.0,0.19233196]
[1727088998059,0.09798296,63552.0,63551.0,0.19233196]
[1727088999364,0.09798296,63552.0,63551.0,0.2709496]
[1727088999755,0.09798296,63552.0,63551.0,0.1922696]
[1727088999954,0.09798296,63552.0,63551.0,0.19227087]
[1727089000860,0.09798296,63552.0,63551.0,0.07861911]
[1727089001053,0.09798296,63552.0,63551.0,0.19230111]
[1727089001255,0.078682,63550.0,63549.0,0.078683]
[1727089001459,0.078682,63550.0,63543.0,0.0497]
[1727089001460,0.078688,63546.0,63545.0,0.078687]
[1727089003359,0.078688,63546.0,63545.0,0.161687]
[1727089009262,0.03931869,63546.0,63545.0,0.36979272]
[1727089009569,0.078683,63549.0,63548.0,0.078682]
[1727089009773,0.078683,63549.0,63548.0,0.272396]
[1727089010161,0.078683,63549.0,63548.0,0.36679777]
[1727089010463,0.09798396,63552.0,63551.0,0.07868]
[1727089010664,0.07868,63552.0,63551.0,0.192394]
[1727089012858,0.07868,63552.0,63551.0,0.272394]
[1727089015571,0.07868,63552.0,63551.0,0.27192892]
[1727089016365,0.10907454,63552.0,63551.0,0.15868]
[1727089017075,0.1400908,63552.0,63551.0,0.15868]
[1727089017273,0.10174869,63555.0,63552.0,0.078679]
[1727089017274,0.10969626,63553.0,63552.0,0.078679]
[1727089017573,0.10969626,63554.0,63553.0,0.078678]
[1727089017766,0.10969626,63554.0,63553.0,0.125378]
[1727089018468,0.18837326,63554.0,63553.0,0.125378]
[1727089018666,0.21876681,63554.0,63553.0,0.125378]
[1727089018860,0.10907055,63554.0,63553.0,0.125378]
[1727089019369,0.18907055,63554.0,63553.0,0.125378]
[1727089020169,0.18907055,63554.0,63553.0,0.126378]
[1727089023370,0.10907055,63554.0,63553.0,0.126378]
[1727089023566,0.1090717,63554.0,63553.0,0.126378]
[1727089024381,0.078677,63554.0,63553.0,0.23961366]
[1727089029480,0.237354,63554.0,63553.0,0.11423566]
[1727089029679,0.237354,63554.0,63536.0,0.14135002]
[1727089029680,0.078689,63544.0,63538.0,0.078696]
[1727089029883,0.078689,63544.0,63538.0,0.08]
[1727089029884,0.4408,63544.0,63538.0,0.08]
[1727089030072,0.4408,63544.0,63542.0,0.078691]
[1727089030275,0.3608,63544.0,63542.0,0.078691]
[1727089030579,0.078692,63542.0,63538.0,0.158695]
[1727089030783,0.078692,63542.0,63539.0,0.13241369]
[1727089030979,0.078693,63541.0,63540.0,0.13241369]
[1727089031379,0.078693,63541.0,63538.0,0.158695]
[1727089031581,0.078693,63541.0,63539.0,0.13240189]
[1727089031781,0.078693,63541.0,63538.0,0.158695]
[1727089032084,0.078693,63541.0,63539.0,0.13240198]
[1727089032284,0.078693,63541.0,63538.0,0.158695]
[1727089032481,0.078693,63541.0,63539.0,0.13238969]
[1727089032684,0.078693,63541.0,63538.0,0.167695]
[1727089032886,0.078693,63541.0,63539.0,0.13239002]
[1727089033088,0.078693,63541.0,63538.0,0.175695]
[1727089033791,0.078693,63541.0,63539.0,0.015]
[1727089034585,0.078694,63540.0,63539.0,0.015]
[1727089035382,0.078694,63540.0,63539.0,0.007]
[1727089035889,0.078694,63540.0,63539.0,0.008]
[1727089036291,0.078694,63540.0,63539.0,0.0577]
[1727089036495,0.078694,63540.0,63539.0,0.008]
[1727089036790,0.078694,63540.0,63539.0,0.015]
[1727089037382,0.158694,63540.0,63539.0,0.015]
[1727089038696,0.158694,63540.0,63519.0,0.50585002]
[1727089038697,0.078706,63530.0,63527.0,0.08095]
[1727089038991,0.158706,63530.0,63529.0,0.078708]
[1727089039188,0.078709,63528.0,63522.0,0.08]
[1727089039993,0.078709,63528.0,63526.0,0.07871]
[1727089040193,0.078709,63528.0,63527.0,0.12581243]
[1727089040607,0.078709,63528.0,63527.0,0.07871]
[1727089041502,0.079709,63528.0,63527.0,0.07871]
[1727089041702,0.080709,63528.0,63527.0,0.07871]
[1727089042107,0.079709,63528.0,63527.0,0.08371]
[1727089042410,0.079709,63528.0,63527.0,0.005]
[1727089042595,0.078709,63528.0,63527.0,0.009]
[1727089042799,0.10239869,63528.0,63527.0,0.009]
[1727089045510,0.3608,63532.0,63530.0,0.078706]
[1727089045511,0.078706,63531.0,63530.0,0.078706]
[1727089046008,0.078708,63529.0,63528.0,0.0451]
[1727089046214,0.078708,63529.0,63528.0,0.1251]
[1727089046414,0.078708,63529.0,63528.0,0.203809]
[1727089048410,0.078708,63529.0,63528.0,0.207809]
[1727089048813,0.078708,63529.0,63528.0,0.210809]
[1727089049120,0.078708,63529.0,63528.0,0.130809]
[1727089050104,0.078708,63529.0,63528.0,0.0521]
[1727089050512,0.078708,63529.0,63528.0,0.05402111]
[1727089050720,0.078708,63529.0,63528.0,0.007]
[1727089051019,0.157416,63529.0,63528.0,0.007]
[1727089054315,0.287416,63529.0,63528.0,0.007]
[1727089056913,0.38138406,63529.0,63528.0,0.007]
[1727089057123,0.287416,63529.0,63528.0,0.007]
[1727089057916,0.31782638,63529.0,63528.0,0.007]
[1727089058111,0.3178262,63529.0,63528.0,0.007]
[1727089058718,0.078719,63520.0,63519.0,0.0493]
[1727089059922,0.079719,63520.0,63519.0,0.0613]
[1727089061823,0.080719,63520.0,63519.0,0.0743]
[1727089062308,0.080719,63520.0,63519.0,0.0683]
[1727089062509,0.1045834,63520.0,63519.0,0.0683]
[1727089062711,0.1045834,63520.0,63519.0,0.019]
[1727089063314,0.4653834,63520.0,63519.0,0.019]
[1727089063719,0.4653834,63520.0,63519.0,0.06609389]
[1727089065122,0.5431024,63520.0,63519.0,0.014]
[1727089065311,0.5421024,63520.0,63519.0,0.005]
[1727089065512,0.5421024,63520.0,63519.0,0.009]
[1727089067223,0.5421024,63520.0,63519.0,0.05610894]
[1727089068126,0.5421024,63520.0,63519.0,0.009]
[1727089068515,0.61107073,63520.0,63519.0,0.009]
[1727089070829,0.73643789,63520.0,63519.0,0.009]
[1727089071217,0.68238093,63520.0,63519.0,0.009]
[1727089071416,0.57251523,63520.0,63519.0,0.009]
[1727089072321,0.60366193,63520.0,63519.0,0.009]
[1727089072618,0.49379623,63520.0,63519.0,0.009]
[1727089073208,0.49379623,63520.0,63519.0,0.08772]
[1727089074123,0.45363257,63520.0,63519.0,0.08772]
[1727089074326,0.12536716,63522.0,63519.0,0.009]
[1727089074327,0.10990179,63522.0,63519.0,0.009]
[1727089074512,0.48616716,63526.0,63525.0,0.078713]
[1727089074513,0.439512,63526.0,63525.0,0.078713]
[1727089074713,0.46288524,63526.0,63525.0,0.078713]
[1727089075427,0.38417324,63526.0,63525.0,0.078713]
[1727089076315,0.38817324,63526.0,63525.0,0.158713]
[1727089080928,0.38817324,63526.0,63525.0,0.078713]
[1727089082531,0.02737324,63526.0,63525.0,0.078713]
[1727089083326,0.02737324,63526.0,63522.0,0.08]
[1727089084024,0.02737324,63526.0,63525.0,0.078713]
[1727089084627,0.02537324,63526.0,63525.0,0.124913]
[1727089084831,0.02337324,63526.0,63525.0,0.124913]
[1727089085017,0.3608,63529.0,63528.0,0.078709]
[1727089086327,0.3658,63529.0,63528.0,0.078709]
[1727089087221,0.46861868,63529.0,63528.0,0.078709]
[1727089088137,0.47361868,63529.0,63528.0,0.078709]
[1727089089126,0.39491068,63529.0,63528.0,0.078709]
[1727089089324,0.39491068,63529.0,63528.0,0.158709]
[1727089091616,0.12726961,63529.0,63528.0,0.709658]
[1727089091823,0.1669257,63529.0,63528.0,1.309658]
[1727089092019,0.18361144,63529.0,63528.0,1.388367]
[1727089092221,0.14124183,63532.0,63529.0,0.078708]
[1727089092433,0.14124183,63532.0,63531.0,0.158705]
[1727089092729,0.00236166,63534.0,63533.0,0.078703]
[1727089094716,0.00236166,63534.0,63531.0,0.001]
[1727089094921,0.33146057,63532.0,63531.0,0.001]
[1727089095123,0.33146057,63532.0,63529.0,0.001]
[1727089095325,0.33146057,63532.0,63526.0,0.3608]
[1727089095640,0.158704,63532.0,63526.0,0.3608]
[1727089095832,0.158704,63532.0,63531.0,0.001]
[1727089096333,0.523504,63532.0,63531.0,0.002]
[1727089097127,0.57182078,63532.0,63531.0,0.002]
[1727089097327,0.74457735,63532.0,63531.0,0.002]
[1727089097525,0.57682078,63532.0,63531.0,0.001]
[1727089098232,0.57882078,63532.0,63531.0,0.002]
[1727089098633,0.530504,63532.0,63531.0,0.002]
[1727089100226,0.530504,63532.0,63520.0,0.05087295]
[1727089100227,0.530504,63532.0,63522.0,0.04717295]
[1727089100433,0.08,63523.0,63520.0,0.04717295]
[1727089100733,0.08,63523.0,63519.0,0.04717295]
[1727089101124,0.08,63523.0,63518.0,0.11281308]
[1727089101125,0.08,63523.0,63522.0,0.078716]
[1727089101535,0.08,63523.0,63522.0,0.079716]
[1727089104033,0.08,63523.0,63522.0,0.081716]
[1727089104236,0.08,63523.0,63522.0,0.12888895]
[1727089105138,0.10400413,63523.0,63522.0,0.12888895]
[1727089105342,0.10400413,63523.0,63522.0,0.081716]
[1727089106738,0.13441204,63523.0,63522.0,0.081716]
[1727089108240,0.21312704,63523.0,63522.0,0.081716]
[1727089108544,0.29999531,63523.0,63522.0,0.081716]
[1727089109239,0.25167636,63523.0,63522.0,0.081716]
[1727089109649,0.37733673,63523.0,63522.0,0.081716]
[1727089109943,0.29733673,63523.0,63522.0,0.081716]
[1727089110146,0.17167636,63523.0,63522.0,0.081716]
[1727089111541,0.29734,63523.0,63522.0,0.081716]
[1727089112247,0.1716763,63523.0,63522.0,0.081716]
[1727089113837,0.10271913,63523.0,63522.0,0.16033094]
[1727089115048,0.10271913,63523.0,63522.0,0.081716]
[1727089115251,0.10271913,63523.0,63522.0,0.16033094]
[1727089115747,0.10271913,63523.0,63522.0,0.081716]
[1727089120650,0.10271913,63523.0,63522.0,0.003]
[1727089122641,0.10271913,63523.0,63522.0,0.081716]
[1727089122842,0.10271913,63523.0,63522.0,0.19500135]
[1727089123756,0.06333489,63523.0,63522.0,0.19500135]
[1727089124545,0.08675083,63523.0,63522.0,0.19500135]
[1727089125358,0.44755083,63523.0,63522.0,0.19500135]
[1727089128555,0.44755083,63523.0,63522.0,0.28904418]
[1727089128765,0.51651034,63523.0,63522.0,0.081716]
[1727089129148,0.64241908,63523.0,63522.0,0.081716]
[1727089129963,0.28161908,63523.0,63522.0,0.081716]
[1727089130154,0.51651034,63523.0,63522.0,0.081716]
[1727089130462,0.51651048,63523.0,63522.0,0.081716]
[1727089131265,0.15571048,63523.0,63522.0,0.081716]
[1727089131461,0.51651048,63523.0,63522.0,0.081716]
[1727089133055,0.56483123,63523.0,63522.0,0.081716]
[1727089133669,0.34518328,63523.0,63522.0,0.081716]
[1727089134779,0.20403123,63523.0,63522.0,0.081716]
[1727089136777,0.20403123,63523.0,63522.0,0.28890335]
[1727089136778,0.08675083,63523.0,63522.0,0.28890335]
[1727089137778,0.08675083,63523.0,63522.0,0.19486052]
[1727089138075,0.08675083,63523.0,63522.0,0.28935409]
[1727089139979,0.08675083,63523.0,63522.0,0.30799819]
[1727089140178,0.08675083,63523.0,63522.0,0.19485367]
[1727089140373,0.08675083,63523.0,63522.0,0.28934868]
[1727089141078,0.08675083,63523.0,63522.0,0.19485367]
[1727089143271,0.08675083,63523.0,63522.0,0.19478336]
[1727089143677,0.08675083,63523.0,63522.0,0.289274]
[1727089143873,0.20403011,63523.0,63522.0,0.081716]
[1727089146075,0.36140746,63523.0,63522.0,0.161716]
[1727089146483,0.14069522,63523.0,63522.0,0.161716]
[1727089147983,0.14068955,63523.0,63522.0,0.161716]
[1727089151776,0.02341594,63523.0,63522.0,0.2747201]
[1727089151982,0.078714,63524.0,63522.0,0.2747201]
[1727089152279,0.078714,63524.0,63523.0,0.20747985]
[1727089152875,0.078714,63524.0,63523.0,0.1130041]
[1727089153116,0.078714,63524.0,63523.0,0.20747985]
[1727089153585,0.078714,63524.0,63523.0,0.1130041]
[1727089153977,0.078714,63524.0,63523.0,0.1140041]
[1727089154379,0.078714,63524.0,63523.0,0.20847985]
[1727089154991,0.078714,63524.0,63523.0,0.1927191]
[1727089155695,0.10647723,63524.0,63523.0,0.1927191]
[1727089157592,0.10647723,63524.0,63523.0,0.19273027]
[1727089158881,0.10647723,63524.0,63523.0,0.079715]
[1727089158882,0.30132127,63524.0,63523.0,0.079715]
[1727089160592,0.17543476,63524.0,63523.0,0.079715]
[1727089160798,0.30132127,63524.0,63523.0,0.079715]
[1727089161190,0.30241731,63524.0,63523.0,0.079715]
[1727089161387,0.14503996,63524.0,63523.0,0.079715]
[1727089161898,0.286688,63524.0,63523.0,0.079715]
[1727089162093,0.25892477,63524.0,63523.0,0.079715]
[1727089162294,0.11727182,63524.0,63523.0,0.079715]
[1727089162499,0.06895468,63524.0,63523.0,1.32731]
[1727089162804,0.06895468,63524.0,63523.0,1.35192293]
[1727089163501,0.12590866,63527.0,63526.0,0.078711]
[1727089163817,0.19485513,63527.0,63526.0,0.078711]
[1727089163998,0.14163916,63530.0,63529.0,0.078708]
[1727089164297,0.17051652,63531.0,63530.0,0.078706]
[1727089164496,0.14163916,63531.0,63530.0,0.078706]
[1727089164694,0.25889796,63531.0,63530.0,0.078706]
[1727089165291,0.1172588,63531.0,63530.0,0.078706]
[1727089165500,0.25889796,63531.0,63530.0,0.078706]
[1727089166190,0.1172588,63531.0,63530.0,0.078706]
[1727089166591,0.1242588,63531.0,63530.0,0.079706]
[1727089166787,0.007,63531.0,63530.0,0.19225607]
[1727089166993,0.014,63531.0,63530.0,0.19325605]
[1727089167594,0.04188967,63531.0,63530.0,0.19325605]
[1727089168903,0.19113916,63532.0,63531.0,0.078705]
[1727089169098,0.19113916,63532.0,63531.0,0.19125505]
[1727089170297,0.19913916,63532.0,63531.0,0.19225505]
[1727089170803,0.23603173,63532.0,63531.0,0.19325505]
[1727089171700,0.23603173,63532.0,63531.0,0.15930226]
[1727089171908,0.23603173,63532.0,63531.0,0.27153695]
[1727089173804,0.23603173,63532.0,63531.0,0.14357717]
[1727089174003,0.09439257,63532.0,63531.0,0.14357717]
[1727089174600,0.09439257,63532.0,63531.0,0.080705]
[1727089175009,0.17309657,63532.0,63531.0,0.080705]
[1727089175395,0.09439257,63532.0,63531.0,0.080705]
[1727089179309,0.09439257,63532.0,63531.0,0.14357717]
[1727089180400,0.09439257,63532.0,63531.0,0.080705]
[1727089182108,0.09439257,63532.0,63531.0,0.57917303]
[1727089182502,0.04489257,63532.0,63531.0,1.19050354]
[1727089182702,0.016,63532.0,63531.0,1.19050354]
[1727089182902,0.60647878,63532.0,63531.0,0.08]
[1727089183913,0.60647878,63532.0,63531.0,0.158705]
[1727089184118,0.60647878,63532.0,63527.0,0.26749896]
[1727089184417,0.11743022,63532.0,63531.0,0.158705]
[1727089184603,0.60646723,63532.0,63531.0,0.158705]
[1727089185210,0.60646723,63532.0,63531.0,0.08]
[1727089185211,0.95926723,63532.0,63531.0,0.08]
[1727089185401,0.96226723,63532.0,63531.0,0.158705]
[1727089185601,0.93186523,63532.0,63531.0,0.158705]
[1727089186215,0.92686523,63532.0,63531.0,0.158705]
[1727089186712,0.92386523,63532.0,63531.0,0.158705]
[1727089186906,0.92386523,63532.0,63531.0,0.159705]
[1727089186907,0.56406523,63532.0,63531.0,0.159705]
[1727089187224,0.92986523,63532.0,63531.0,0.160705]
[1727089187414,0.56906523,63532.0,63531.0,0.160705]
[1727089187713,0.92986523,63532.0,63531.0,0.160705]
[1727089189411,0.89132346,63532.0,63531.0,0.160705]
[1727089189605,0.41610245,63532.0,63531.0,0.41658481]
[1727089189916,0.3698,63532.0,63531.0,0.41658481]
[1727089190709,0.009,63532.0,63531.0,0.41658481]
[1727089190907,0.3698,63532.0,63531.0,0.41658481]
[1727089193611,0.009,63532.0,63531.0,0.41658481]
[1727089193810,0.3698,63532.0,63531.0,0.41658481]
[1727089194914,0.009,63532.0,63531.0,0.41658481]
[1727089195114,0.3698,63532.0,63531.0,0.41658481]
[1727089195517,0.3698,63532.0,63531.0,0.27744053]
[1727089196614,0.3698,63532.0,63531.0,0.41620718]
[1727089197607,0.009,63532.0,63531.0,0.41620718]
[1727089198013,0.3698,63532.0,63531.0,0.41620718]
[1727089199716,0.009,63532.0,63531.0,0.41620718]
[1727089199917,0.3698,63532.0,63531.0,0.41620718]
[1727089200420,0.3698,63532.0,63531.0,0.33620718]
[1727089200824,0.3698,63532.0,63531.0,0.57601729]
[1727089201016,0.0455,63542.0,63537.0,0.078698]
[1727089201326,0.3608,63539.0,63538.0,0.078697]
[1727089201525,0.3608,63539.0,63538.0,0.33419918]
[1727089202121,0.4408,63539.0,63538.0,0.33419918]
[1727089203221,0.4408,63539.0,63538.0,0.33519918]
[1727089203412,0.4408,63539.0,63538.0,0.33619918]
[1727089203814,0.46889392,63539.0,63538.0,0.33619918]
[1727089204726,0.55574403,63539.0,63538.0,0.080697]
[1727089206429,0.47574403,63539.0,63538.0,0.080697]
[1727089206926,0.63443903,63539.0,63538.0,0.002]
[1727089207128,0.79181297,63539.0,63538.0,0.002]
[1727089207322,0.79181484,63539.0,63538.0,0.002]
[1727089208520,0.6344409,63539.0,63538.0,0.002]
[1727089211734,0.46758892,63539.0,63538.0,0.002]
[1727089215534,0.10678892,63539.0,63538.0,0.002]
[1727089215736,0.46758892,63539.0,63538.0,0.002]
[1727089216641,0.10678892,63539.0,63538.0,0.002]
[1727089216835,0.46758892,63539.0,63538.0,0.002]
[1727089219330,0.54758892,63539.0,63538.0,0.002]
[1727089219644,0.63444518,63539.0,63538.0,0.002]
[1727089220239,0.71314018,63539.0,63538.0,0.002]
[1727089221543,0.87056169,63539.0,63538.0,0.002]
[1727089223436,0.078706,63530.0,63529.0,0.078707]
[1727089223639,0.078712,63527.0,63526.0,0.07871]
[1727089223950,0.60637338,63527.0,63526.0,0.07871]
[1727089224245,0.55805563,63527.0,63526.0,0.07871]
[1727089225539,0.58603979,63527.0,63526.0,0.07871]
[1727089226143,0.71171438,63527.0,63526.0,0.07871]
[1727089226746,0.54749616,63527.0,63526.0,0.15740153]
[1727089227143,0.54749616,63527.0,63526.0,0.07871]
[1727089231556,0.54749616,63527.0,63526.0,0.14156827]
[1727089234244,0.078711,63526.0,63525.0,0.06285827]
[1727089234474,0.158711,63526.0,63523.0,0.06285827]
[1727089234759,0.158711,63526.0,63521.0,0.078717]